Cogmind - Beta 9.6 @@@ ROGUE MODE // 2020.04.19 @ 21:46:51 Player: Nefhilion Result: Destroyed by Y-45 Defender with Heavy Assault Rifle Performance ------------- Evolutions (2) 1000 Regions Visited (4) 800 Robots Destroyed (8) 40 Value Destroyed (116) 116 Prototype IDs (0) 0 Alien Tech Used (0) 0 Bonus (0) 0 TOTAL SCORE: 1956 Bonus ------- None Cogmind --------- Core Integrity 0/550 Matter 276/300 Energy 100/100 System Corruption 1% Temperature Cool (9) Movement Core (50) Location -8/Storage Parts ------- > --- POWER (1) -------- (None) > --- PROPULSION (4) --- (None) > --- UTILITY (3) ------ Advanced Visual Processing Unit > --- WEAPON (3) ------- (None) > --- INVENTORY (4) ---- Small Storage Unit Beam Rifle Heavy Particle Cannon Peak State ------------ > --- POWER ------------ (None) > --- PROPULSION ------- Carbon-fiber Leg Carbon-fiber Leg Carbon-fiber Leg > --- UTILITY ---------- Small Storage Unit Advanced Visual Processing Unit > --- WEAPON ----------- Beam Rifle Beam Rifle Heavy Particle Cannon > --- INVENTORY -------- Beam Rifle Heavy Particle Cannon [Rating: 20] Favorites ----------- Power Ion Engine Engine Ion Engine Propulsion Compact Wheel Leg Carbon-fiber Leg Wheel Compact Wheel Hover Unit Hover Unit Utility Small Storage Unit Storage Small Storage Unit Processor Advanced Visual Processing Unit Weapon Light Assault Rifle Energy Gun Medium Laser Energy Cannon Heavy Particle Cannon Ballistic Gun Light Assault Rifle Build | -11 -10 -9 -8 -8 ------- Run | Scr Mat Mat Mat Sto Slots Evolved 4 | . . 2 2 . Power . | . . . . . Propulsion 2 | . . 2 . . Utility 1 | . . . 1 . Weapon 1 | . . . 1 . Parts Attached 23 | 6 3 6 8 . Power 3 | 1 . 2 . . Engine 3 | 1 . 2 . . Core . | . . . . . Reactor . | . . . . . Propulsion 11 | 2 2 4 3 . Treads . | . . . . . Leg 7 | . . 4 3 . Wheel 2 | 2 . . . . Hover 2 | . 2 . . . Flight . | . . . . . Utility 3 | 1 . . 2 . Device . | . . . . . Storage 2 | 1 . . 1 . Processor 1 | . . . 1 . Hackware . | . . . . . Protection . | . . . . . Artifact . | . . . . . Weapon 6 | 2 1 . 3 . Energy Gun 4 | 1 1 . 2 . Energy Cannon 1 | . . . 1 . Ballistic Gun 1 | 1 . . . . Ballistic Cannon . | . . . . . Launcher . | . . . . . Special Weapon . | . . . . . Impact Weapon . | . . . . . Slashing Weapon . | . . . . . Piercing Weapon . | . . . . . Special Melee Weapon . | . . . . . Unidentified Prototypes . | . . . . . Parts Lost 17 | . 8 3 6 . Power 2 | . 1 1 . . Propulsion 9 | . 4 2 3 . Utility . | . . . . . Weapon 6 | . 3 . 3 . Highest Loss Streak 8 | . 8 2 6 . Average Slot Usage (%) 39 | . 70 14 31 9 Engine 5 | . 11 3 . . Leg 7 | . . 10 14 . Wheel 8 | . 23 . . . Hover 1 | . 2 . . . Storage 6 | . 12 . 6 . Processor 2 | . . . 7 9 Energy Gun 4 | . 9 . 1 . Ballistic Gun 3 | . 9 . . . Naked Turns 106 | . 4 75 27 . Heaviest Build 13 | 12 12 5 13 . Greatest Support 45 | 32 32 20 45 3 Greatest Overweight (x) 1 | 1 1 1 1 . Average Overweight (x) . | . . . . . Largest Inventory Capacity 6 | 6 6 4 6 4 Average Capacity 5 | 5 5 4 5 4 Most Carried 6 | 4 4 4 6 3 Average Carried 2 | 2 3 1 3 3 Final Capacity 6 | 6 4 4 4 4 Final Carried 4 | 4 4 4 3 3 Class Distribution -------------------- 100% | Mutant Dominant Class ---------------- Mutant | -10/Materials Mutant | -9/Materials Mutant | -8/Materials Mutant | -8/Storage Resources | -11 -10 -9 -8 -8 ----------- Run | Scr Mat Mat Mat Sto Matter Collected 287 | 219 51 17 . . Remotely . | . . . . . Salvage Created 186 | . 144 29 13 . Parts 17 | . 11 5 1 . Haulers Intercepted . | . . . . . Recyclers Shooed 2 | . 1 . 1 . Parts Field Recycled . | . . . . . Retrieved Matter . | . . . . . Parts Self-Destructed . | . . . . . Prevented . | . . . . . Kills | -11 -10 -9 -8 -8 ------- Run | Scr Mat Mat Mat Sto Combat Hostiles Destroyed 5 | . 4 . 1 . Guns 4 | . 4 . . . Cannons 1 | . . . 1 . Classes Destroyed 5 | . 4 1 . . Worker 1 | . 1 . . . Builder 1 | . . 1 . . Recycler 1 | . 1 . . . Swarmer 4 | . 3 . 1 . Grunt 1 | . 1 . . . Best Kill Streak 6 | . 6 1 1 . Combat Bots Only 4 | . 4 . 1 . Max Kills in Single Turn 1 | . 1 1 1 . Gunslinging . | . . . . . Exploded . | . . . . . Melee . | . . . . . Uniques/NPCs Destroyed . | . . . . . Combat | -11 -10 -9 -8 -8 -------- Run | Scr Mat Mat Mat Sto Damage Taken 2364 | . 620 499 1217 28 Core 1064 | . 217 288 531 28 Absorbed by Shields . | . . . . . Core Remaining (%) 47 | 100 13 28 . . Volleys Fired 15 | . 11 . 4 . Largest 2 | . 2 . 1 . Hottest 75 | . 70 . 75 . Shots Fired 21 | . 17 . 4 . Gun 17 | . 17 . . . Cannon 4 | . . . 4 . Launcher . | . . . . . Special . | . . . . . Kinetic 10 | . 10 . . . Thermal 11 | . 7 . 4 . Explosive . | . . . . . Electromagnetic . | . . . . . Robot Hit Streak 4 | . 2 . 4 . Robot Miss Streak 3 | . 3 . 1 . Penetration Max . | . . . . . Secondary Targets 2 | . 2 . . . Max Gunslinging Chain 1 | . 1 . . . Shots Hit Robots 11 | . 8 . 3 . Core Hits 21 | . 10 7 4 . Critical Hits . | . . . . . Critical Kills . | . . . . . Critical Parts Destroyed . | . . . . . Melee Attacks . | . . . . . Impact . | . . . . . Slashing . | . . . . . Piercing . | . . . . . Sneak Attacks . | . . . . . Combat Hostiles . | . . . . . Follow-up Attacks . | . . . . . Damage Inflicted 680 | . 539 58 83 . Guns 76 | . 76 . . . Cannons 75 | . . . 75 . Explosions 458 | . 458 . . . Melee . | . . . . . Ramming 71 | . 5 58 8 . Kinetic 27 | . 27 . . . Thermal 124 | . 49 . 75 . Explosive 458 | . 458 . . . Electromagnetic . | . . . . . Impact . | . . . . . Slashing . | . . . . . Piercing . | . . . . . Highest Corruption 2 | . . 2 1 1 Average Corruption 1 | . . 2 1 1 Corruption Purged . | . . . . . Effects 1 | . . 1 . . Heat Flow Errors 1 | . . 1 . . Overload Shots . | . . . . . Overflow Damage 103 | . 98 . 5 . Projectiles 5 | . . . 5 . Explosions 98 | . 98 . . . Melee . | . . . . . Knockbacks . | . . . . . Impact . | . . . . . Kinetic . | . . . . . Secondary . | . . . . . Self-Inflicted Damage 143 | . 113 27 3 . Shots 1 | . 1 . . . Rammed 19 | . 1 14 4 . Targets Rammed 22 | . 1 14 7 . Kicked 3 | . . . 3 . Crushed . | . . . . . Highest Temperature 111 | . 62 111 54 . Average Temperature 28 | . 24 69 25 . Received Heat Transfer 642 | . 114 195 324 9 Siege Activations . | . . . . . Robots Corrupted . | . . . . . Combat Hostiles . | . . . . . Parts Fried . | . . . . . Impact Corruptions . | . . . . . Robots Melted . | . . . . . Combat Hostiles . | . . . . . Parts Melted . | . . . . . Heat Transferred 259 | . 148 . 111 . Parts Sabotaged . | . . . . . Parts Stolen . | . . . . . Parts Stripped . | . . . . . Power Chain Reactions . | . . . . . Missiles Intercepted . | . . . . . Alert | -11 -10 -9 -8 -8 ------- Run | Scr Mat Mat Mat Sto Peak Influence 140 | . 140 44 61 13 Average Influence 25 | . 37 18 25 13 Maximum Alert Level . | . . . . . Low Security (%) 100 | 100 100 100 100 100 Level 1 . | . . . . . Level 2 . | . . . . . Level 3 . | . . . . . Level 4 . | . . . . . Level 5 . | . . . . . High Security . | . . . . . Max Security . | . . . . . Squads Dispatched 3 | . 2 . 1 . Investigation 2 | . 1 . 1 . Extermination . | . . . . . Reinforcement 1 | . 1 . . . Assault . | . . . . . Garrison . | . . . . . Intercept . | . . . . . Construction Impeded . | . . . . . Haulers Reinforced . | . . . . . Stealth | -11 -10 -9 -8 -8 --------- Run | Scr Mat Mat Mat Sto Distress Signals 7 | . 2 1 4 . Communications Jammed . | . . . . . Distress Signals . | . . . . . Times Spotted 41 | . 17 6 17 1 Peak Tracking Total 10 | . 8 5 10 . Tactical Retreats 7 | . 2 2 3 . Traps | -11 -10 -9 -8 -8 ------- Run | Scr Mat Mat Mat Sto Traps Triggered 1 | . . 1 . . Indirectly . | . . . . . Trap Hack Attempts . | . . . . . Triggered . | . . . . . Disarmed . | . . . . . Reprogrammed . | . . . . . Reused . | . . . . . Traps Extracted . | . . . . . Installed . | . . . . . Triggered . | . . . . . Machines | -11 -10 -9 -8 -8 ---------- Run | Scr Mat Mat Mat Sto Machines Disabled 3 | . 3 . . . Max in Single Turn 2 | . 2 . . . Machines Sabotaged . | . . . . . Garrisons Compromised . | . . . . . Overloaded Fab Kills . | . . . . . Fab Network Shutdowns . | . . . . . Hacking | -11 -10 -9 -8 -8 --------- Run | Scr Mat Mat Mat Sto Machines Accessed 5 | . 2 1 1 1 Terminals 5 | . 2 1 1 1 Fabricators . | . . . . . Repair Stations . | . . . . . Recycling Units . | . . . . . Scanalyzers . | . . . . . Garrison Access . | . . . . . Total Hacks 7 | . 2 1 3 1 Successful 5 | . 2 1 1 1 Failed 2 | . . . 2 . Catastrophic . | . . . . . Database Lockouts . | . . . . . Manual 4 | . 1 . 3 . Terminals 7 | . 2 1 3 1 Fabricators . | . . . . . Repair Stations . | . . . . . Recycling Units . | . . . . . Scanalyzers . | . . . . . Garrison Access . | . . . . . Terminal Hacks 3 | . 1 1 . 1 Alert Level 2 | . 1 . . 1 Unreport Threat 1 | . . 1 . . Fabricator Hacks . | . . . . . Repair Station Hacks . | . . . . . Recycling Unit Hacks . | . . . . . Scanalyzer . | . . . . . Garrison Access Hacks . | . . . . . Unauthorized Hacks 2 | . 1 . 1 . Terminals 2 | . 1 . 1 . Sabotage 2 | . 1 . 1 . Fabricators . | . . . . . Repair Stations . | . . . . . Recycling Units . | . . . . . Scanalyzers . | . . . . . Garrison Access . | . . . . . Data Cores Recovered . | . . . . . Used . | . . . . . Hacking Detections 2 | . 1 . . 1 Full Trace Events . | . . . . . Feedback Events . | . . . . . Feedback Blocked . | . . . . . Robot Schematics Acquired . | . . . . . Robots Built . | . . . . . Matter . | . . . . . Time . | . . . . . Total Robot Build Rating . | . . . . . Part Schematics Acquired . | . . . . . Parts Built . | . . . . . Matter . | . . . . . Time . | . . . . . Total Part Build Rating . | . . . . . Parts Repaired . | . . . . . Time . | . . . . . Parts Recycled . | . . . . . Recycled Matter . | . . . . . Retrieved Matter . | . . . . . Retrieved Components . | . . . . . Parts Scanalyzed . | . . . . . Part Schematics Acquired . | . . . . . Parts Damaged . | . . . . . Bothacking | -11 -10 -9 -8 -8 ------------ Run | Scr Mat Mat Mat Sto Used RIF Installer . | . . . . . Robots Hacked . | . . . . . Non-combat . | . . . . . Combat . | . . . . . Robot Hacks Applied . | . . . . . Relay Couplers Released . | . . . . . Robots Rewired . | . . . . . Allies Hacked . | . . . . . Hacks Repelled . | . . . . . Allies | -11 -10 -9 -8 -8 -------- Run | Scr Mat Mat Mat Sto Total Allies . | . . . . . Largest Group . | . . . . . Highest-Rated Group . | . . . . . Highest-Rated Ally . | . . . . . Total Orders . | . . . . . Ally Attacks . | . . . . . Total Damage . | . . . . . Kills . | . . . . . Allies Corrupted . | . . . . . Allies Melted . | . . . . . Intel | -11 -10 -9 -8 -8 ------- Run | Scr Mat Mat Mat Sto Robot Analysis Total . | . . . . . Derelict Logs Recovered . | . . . . . Drone Launches . | . . . . . Drone Recoveries . | . . . . . Exploration | -11 -10 -9 -8 -8 ------------- Run | Scr Mat Mat Mat Sto Turns Passed 734 | 53 239 181 245 16 Spaces Moved 746 | 42 237 180 257 30 Core 372 | 8 61 109 164 30 Treads . | . . . . . Legs 164 | . . 71 93 . Wheels 210 | 34 176 . . . Hover . | . . . . . Flight . | . . . . . Fastest Speed 50 | 50 50 50 50 50 Average Speed 81 | 91 87 78 80 50 Slowest Speed 120 | 100 100 120 120 50 Overloaded Moves . | . . . . . Propulsion Burnouts . | . . . . . Robots Hopped . | . . . . . Cave-ins Triggered . | . . . . . Exploration Rate (%) 24 | 4 52 19 33 12 Regions Visited 4 Branch Regions 1 Pre-discovered Areas . | . . . . . Known Exits Taken . | . . . . . Unknown Exits Taken 4 | 1 1 1 1 . Scrap Searched . | . . . . . Spaces Dug . | . . . . . Terrain Destroyed 24 | . 23 . 1 . Melee . | . . . . . Projectile 1 | . . . 1 . AOE 23 | . 23 . . . Actions | -11 -10 -9 -8 -8 --------- Run | Scr Mat Mat Mat Sto Total 841 | 53 252 218 288 30 Wait 25 | 2 . 14 9 . Move 742 | 41 236 179 256 30 Hop . | . . . . . Pick Up 11 | 4 . 4 3 . Fast Attach 14 | 6 2 3 3 . Attach 9 | . 1 3 5 . Detach 2 | . 1 . 1 . Swap . | . . . . . Drop 1 | . . 1 . . Fire 15 | . 11 . 4 . Melee . | . . . . . Ram 18 | . 1 14 3 . Kick 4 | . . . 4 . Crush . | . . . . . Escape Stasis . | . . . . . Rewire . | . . . . . Trap . | . . . . . Miscellaneous . | . . . . . Route ------- -11/Scrapyard -10/Materials -9/Materials -8/Materials -8/Storage History --------- Turn | Location | Event 22 | -11/Scrapyard | Discovered new exit (range 15) 54 | -11/Scrapyard | Entered Materials 257 | -10/Materials | Core integrity fell below 50% 284 | -10/Materials | Core integrity fell below 20% 285 | -10/Materials | Discovered new exit (range 15) 293 | -10/Materials | Entered another Materials area 293 | -9/Materials | Evolved 2 slots: Propulsion x2 316 | -9/Materials | Build established: Mutant 320 | -9/Materials | Lost 8 parts (1p4n3w) 406 | -9/Materials | Core integrity fell below 50% 455 | -9/Materials | Discovered new exit (range 13) 474 | -9/Materials | Entered another Materials area 474 | -8/Materials | Evolved 2 slots: Utility x1, Weapon x1 478 | -8/Materials | Discovered new exit (range 7) 671 | -8/Materials | Core integrity fell below 50% 678 | -8/Materials | Lost 6 parts (3n3w) 683 | -8/Materials | Core integrity fell below 20% 719 | -8/Materials | Entered Storage 735 | -8/Storage | Destroyed by Y-45 Defender with Heavy Assault Rifle Last Messages --------------- 00640_ K-01 Serf collects debris. 00647_ Carbon-fiber Leg destroyed. 00651_ K-01 Serf collects debris. 00656_ K-01 Serf destroyed. 00657_ K-01 Serf collects debris. 00660_ Slammed into R-06 Scavenger. 00660_ K-01 Serf collects debris. 00660_ R-06 Scavenger sends out distress signal. 00666_ K-01 Serf collects debris. 00671_ Slammed into A-02 Transporter. 00671_ A-02 Transporter sends out distress signal. 00678_ Slammed into U-05 Engineer. 00686_ W-25 Informer sends out distress signal. 00704_ K-01 Serf collects debris. LOCATION=UNKNOWN GOAL=ESCAPE 00730_ Connecting with Terminal... 00730_ Current location identified: Storage >>Alert(Check) Current Alert Level: Low Security Map ----- +----------------------------------------------------+ | | | | | | | | | | | | | | | | | | | | | | | | | | | | | | | | | ?????????????????????????????????????????????????? | | ?????????????????????????????????????????????????? | | ?????????????????????????????????????????????????? | | ?????????????????????????????????????????????????? | | ?????????????????????????????????????????????????? | | ???????????????????????????#####?????????????????? | | ???????????????????????????#"""#?????????????????? | | ?????????? #####+########"T"#######+######????? | | ?????????? #????? | | ?????????? Y @ #????? | | ?????????? r #????? | | ?????????? #######+###+##+#########+######????? | | ????????????????????????# #?? ????????? | | ????????????????????????# ## ??????? | | ????????????????????????# ## #?????? | | ????????????????????????# [## #?????? | | ????????????????????????# ## #?????? | | ???????????????????????#T """" ## #?????? | | ???????????????????????## """" ## #?????? | | ????????????????????????# """" ## #?????? | | ????????????????????????# """" ## #?????? | | ????????????????????????################+###?????? | | ?????????????????????????????????????????????????? | | ?????????????????????????????????????????????????? | | ?????????????????????????????????????????????????? | | ?????????????????????????????????????????????????? | | ?????????????????????????????????????????????????? | | ?????????????????????????????????????????????????? | | ?????????????????????????????????????????????????? | | ?????????????????????????????????????????????????? | | ?????????????????????????????????????????????????? | | ?????????????????????????????????????????????????? | | ?????????????????????????????????????????????????? | | ?????????????????????????????????????????????????? | +----------------------------------------------------+ Best States ------------- Heat Dissipation 31 Energy Generation 10 Energy Capacity 250 Matter Stores 300 Matter Capacity 300 Sight Range 20 Terrain Scan Density 10 Evasion (%) 50 Item Schematics ----------------- None Robot Schematics ------------------ None Fabricated ------------ Nothing Alien Tech Used ----------------- None Achievements -------------- Brute Force Challenges ------------ None Game ------ Seed FluxSmallMultirail Manual? 0 Play Time 00:08:45 Cumulative 38.9 hours Start 2020.04.19 @ 21:38:13 End 2020.04.19 @ 21:46:51 Sessions 1 Manual Loads 0 Difficulty Rogue Special Mode None Game No. 42 Rogue 42 Adventurer 0 Explorer 0 Win Type - Total 1 Types 1/0/0/0/0/0/0 Lore% 32 Gallery% 41 Achievement% 33 Wizard Run 0 Options --------- ASCII 0 Keyboard 1 Movement Numpad Keybinds 0 Fullscreen 1 Font 24/Smallcaps Map View 76x50 Tactical HUD 1 Map Filters NONE Filters NONE Steam 1 RUN: 12b8427c-32bf-4f8e-b278-a703cc60dd0f